fUST/lending_fUST_20240712
["ID","MTS","AMOUNT","RATE_DAILY","PERIOD"]
[331742239,1720737038561,-187.500003,0.00022448,2]
[331742240,1720737038572,-1634.59229075,0.00022942,2]
[331742241,1720737038583,-166.666666,0.00022944,2]
[331742242,1720737038592,-5330.1778104,0.00023229,2]
[331742243,1720737038601,-150.0,0.00023279,2]
[331742244,1720737038610,-503.0,0.00023279,2]
[331742245,1720737038619,-1406.0,0.00023279,2]
[331742246,1720737038629,-166.666666,0.00023456,2]
[331742247,1720737038638,-153.0,0.00023562,2]
[331742248,1720737038648,-153.0,0.00023562,2]
[331742249,1720737038658,-620.00030135,0.00023596,2]
[331742250,1720737038668,-155.45465387,0.00023968,2]
[331742251,1720737038678,-166.666666,0.00023969,2]
[331742252,1720737038687,-284.1434337,0.00024055,2]
[331742253,1720737038698,-153.0,0.00024055,2]
[331742254,1720737038708,-153.0,0.00024055,2]
[331742255,1720737038718,-153.0,0.00024055,2]
[331742256,1720737038727,-153.0,0.0002411,2]
[331742257,1720737038737,-166.666666,0.00024482,2]
[331742258,1720737038747,-153.0,0.00024521,2]
[331742259,1720737038757,-153.0,0.00024521,2]
[331742260,1720737038767,-153.0,0.00024521,2]
[331742261,1720737038777,-153.0,0.00024521,2]
[331742262,1720737038791,-153.0,0.00024521,2]
[331742263,1720737038800,-153.0,0.00024521,2]
[331742264,1720737038809,-153.0,0.00024521,2]
[331742265,1720737038818,-153.0,0.00024521,2]
[331742266,1720737038828,-6408.86026187,0.0002465,2]
[331742267,1720737038838,-563.03985909,0.00024729,3]
[331742268,1720737038848,-151.0,0.0002473,7]
[331742270,1720737038857,-151.0,0.0002473,2]
[331742271,1720737038867,-151.0,0.0002475,7]
[331742272,1720737038877,-620.00001507,0.00024776,2]
[331742273,1720737038886,-151.0,0.0002479,7]
[331742274,1720737038895,-151.0,0.0002479,7]
[331742275,1720737038906,-151.0,0.0002479,7]
[331742276,1720737038915,-171.377898,0.00024819,7]
[331742277,1720737038925,-171.377898,0.00024819,7]
[331742278,1720737038935,-151.0,0.00024819,7]
[331742279,1720737038946,-151.0,0.00024819,2]
[331742280,1720737038956,-151.0,0.00024829,7]
[331742281,1720737038966,-151.0,0.00024829,7]
[331742282,1720737038975,-151.0,0.00024829,7]
[331742283,1720737038985,-477.12,0.0002483,3]
[331742284,1720737038994,-9893.45,0.0002483,3]
[331742285,1720737039004,-8244.54,0.0002483,3]
[331742286,1720737039013,-6408.86026187,0.00024838,2]
[331742287,1720737039023,-619.893609,0.00024838,7]
[331742288,1720737039037,-619.893609,0.00024838,7]
[331742289,1720737039047,-151.0,0.00024839,7]
[331742290,1720737039058,-151.0,0.00024839,7]
[331742291,1720737039069,-171.377898,0.00024839,7]
[331742292,1720737039078,-171.377898,0.00024839,7]
[331742293,1720737039088,-151.0,0.00024839,7]
[331742294,1720737039097,-151.0,0.00024839,2]
[331742295,1720737039107,-954.23,0.00024839,3]
[331742296,1720737039117,-314.25,0.0002484,3]
[331742297,1720737039127,-1908.46,0.0002484,3]
[331742298,1720737039138,-238.56,0.0002484,3]
[331742299,1720737039148,-14246.57,0.0002484,3]
[331742300,1720737039158,-715.68,0.0002484,3]
[331742301,1720737039167,-11872.14,0.0002484,3]
[331742302,1720737039177,-6977.65304655,0.00024849,5]
[331742303,1720737039186,-619.893609,0.00024849,7]
[331742304,1720737039196,-619.893609,0.00024849,7]
[331742305,1720737039206,-44436.80427854,0.0002485,2]
[331742323,1720737040428,-19215.98069628,0.0002485,2]
[331742324,1720737040438,-151.0,0.0002485,7]
[331742325,1720737040447,-151.0,0.0002485,7]
[331742326,1720737040457,-171.377898,0.0002485,7]
[331742327,1720737040468,-171.377898,0.0002485,7]
[331742328,1720737040477,-151.0,0.0002485,7]
[331742329,1720737040487,-619.893609,0.0002485,7]
[331742330,1720737040496,-619.893609,0.0002485,7]
[331742331,1720737040506,-657.557705,0.000249,4]
[331742332,1720737040518,-302.39527296,0.000249,2]
[331742333,1720737040527,-302.39527296,0.000249,2]
[331742334,1720737040539,-151.0,0.0002499,7]
[331742335,1720737040548,-171.377898,0.0002499,7]
[331742336,1720737040558,-171.377898,0.0002499,7]
[331742337,1720737040568,-151.0,0.0002499,7]
[331742339,1720737040578,-189.30856144,0.00025,2]
[331742340,1720737040590,-1000.0,0.00025,25]
[331742342,1720737040600,-14347.28784145,0.00025,2]
[331742344,1720737040610,-154.69833824,0.00025,2]
[331742346,1720737040619,-499.99255164,0.00025,2]
[331742347,1720737040629,-154.69833824,0.00025,2]
[331742348,1720737040638,-229.23922118,0.00025,2]
[331742349,1720737040647,-11394.94349912,0.00025,2]
[331742377,1720737046512,-555.03631591,0.00022288,2]
[331742392,1720738172159,-293.58203646,0.0002,2]
[331742393,1720738172181,-750.0,0.00021096,2]
[331742394,1720738172203,-163.100215,0.00021096,2]
[331742395,1720738172228,-7909.5275163,0.00021306,2]
[331742416,1720738232609,-287.0,0.00021305,2]
[331742419,1720738232620,-7548.80203682,0.00021306,2]
[331742506,1720738238440,-744.0,0.00021306,2]
[331742507,1720738238499,-8697.67044688,0.00021306,2]
[331742508,1720738238510,-1927.3375417,0.00021313,2]
[331742509,1720738238519,-1101.58641358,0.00021862,2]
[331742510,1720738238529,-358.3260617,0.00021887,2]
[331742511,1720738238539,-1065.99282123,0.00021917,2]
[331742512,1720738238548,-166.666666,0.00021918,2]
[331742513,1720738238558,-166.666666,0.00022034,2]
[331742514,1720738238568,-166.666666,0.00022178,2]
[331742515,1720738238578,-2015.07796091,0.00022188,2]
[331742516,1720738238588,-880.43468387,0.00022278,2]
[331742517,1720738238599,-764.10919398,0.00022288,2]
[331742518,1720738238611,-1000.0,0.00022288,2]
[331742519,1720738238620,-5330.1778104,0.00022288,2]
[331742520,1720738238631,-225.81003448,0.00022288,2]
[331742521,1720738238640,-166.666666,0.00022321,2]
[331742522,1720738238650,-248.74539897,0.00022397,2]
[331742523,1720738238664,-166.666666,0.00022465,2]
[331742524,1720738238674,-166.666666,0.0002247,2]
[331742525,1720738238683,-166.666666,0.00022608,2]
[331742526,1720738238693,-166.666666,0.00022752,2]
[331742527,1720738238703,-166.666666,0.00022895,2]
[331742528,1720738238713,-644.07932068,0.00022955,2]
[331742529,1720738238724,-902.0,0.00023,2]
[331742530,1720738238734,-166.666666,0.00023022,2]
[331742531,1720738238743,-166.666666,0.00023039,2]
[331742532,1720738238753,-166.666666,0.00023182,2]
[331742533,1720738238763,-166.666666,0.00023575,2]
[331742534,1720738238772,-503.0,0.00023684,2]
[331742535,1720738238781,-1406.0,0.00023684,2]
[331742536,1720738238791,-150.0,0.00023684,2]
[331742537,1720738238800,-9733.93433061,0.00024,10]
[331742538,1720738238809,-166.666666,0.00024127,2]
[331742539,1720738238819,-166.666666,0.00024679,2]
[331742540,1720738238828,-302.39527296,0.000249,2]
[331742541,1720738238837,-302.39527296,0.000249,2]
[331742542,1720738238846,-68.16212748,0.00025,2]
[331742543,1720738238855,-2999.99999901,0.00025,7]
[331742544,1720738238865,-1852.06886427,0.00025,2]
[331742545,1720738238874,-1025.83120414,0.00025,2]
[331742546,1720738238886,-7116.13511323,0.00025,2]
[331742547,1720738238896,-229.23922118,0.00025,2]
[331742548,1720738238905,-499.99255164,0.00025,2]
[331742549,1720738238917,-3427.40343414,0.00025104,2]
[331742550,1720738238930,-417.91272299,0.00025104,2]
[331742551,1720738238939,-154.68290005,0.00025121,2]
[331742552,1720738238949,-302.39527296,0.00025149,2]
[331742553,1720738238958,-173.42766411,0.00025149,2]
[331742554,1720738238970,-3669.13386171,0.00025178,2]
[331742555,1720738238982,-176.18229541,0.00025178,2]
[331742556,1720738238992,-4179.87,0.00025184,3]
[331742557,1720738239001,-6173.8,0.00025184,3]
[331742558,1720738239010,-5144.84,0.00025184,3]
[331742559,1720738239019,-4287.36,0.00025184,3]
[331742560,1720738239028,-1192.79,0.00025184,3]
[331742561,1720738239037,-500.0,0.00025193,2]
[331742562,1720738239047,-3488.82652328,0.00025193,5]
[331742563,1720738239056,-47156.94341444,0.00025194,3]
[331742568,1720738240733,-202.53515113,0.00022579,2]
[331742569,1720738240743,-2557.39540312,0.00025184,3]
[331742570,1720738240755,-1015.40459688,0.00025184,3]
[331742571,1720738240765,-25570.4913011,0.00025194,3]
[331742572,1720738240776,-67671.27698046,0.00025194,3]
[331742573,1720738240785,-151.0,0.00025194,7]
[331742574,1720738240794,-495.914887,0.00025194,7]
[331742575,1720738240803,-495.914887,0.00025194,7]
[331742576,1720738240813,-151.0,0.00025194,7]
[331742577,1720738240822,-11097.62242019,0.00025204,2]
[331742614,1720738246654,-154.68290005,0.0002511,2]
[331742615,1720738246664,-11186.82191005,0.00025204,2]
[331742616,1720738246675,-5253.42656205,0.00025204,2]
[331742617,1720738246687,-1678.98109624,0.00025204,2]
[331742618,1720738246712,-783.14801147,0.00025204,2]
[331742619,1720738246721,-151.0,0.00025204,7]
[331742620,1720738246730,-253.46199942,0.00025204,7]
[331742639,1720738824654,7940.01013814,0.00019164,2]
[331742650,1720739214194,-293.58203646,0.0002,2]
[331742651,1720739214217,-750.0,0.00021096,2]
[331742652,1720739214244,-8072.62864484,0.00021357,2]
[331742781,1720739438904,-197.37496918,0.00021095,2]
[331742782,1720739438914,-300.0,0.00021356,2]
[331742783,1720739438924,-2084.7459467,0.00021357,2]
[331742857,1720740327752,211.5186256,0.00016255,2]
[331742858,1720740345475,174.64145019,0.00016255,2]
[331742890,1720740632050,-191.12784748,0.00018798,2]
[331742892,1720740632061,-154.77557542,0.00018798,2]
[331742894,1720740632071,-293.58203646,0.0002,2]
[331742896,1720740632082,-300.0,0.00020402,2]
[331742898,1720740632093,-61.36779941,0.00020402,2]
[331742919,1720740639061,-238.63220059,0.00020402,2]
[331742921,1720740639071,-1744.41326164,0.00020403,5]
[331742924,1720740639082,-12188.99804469,0.00020403,2]
[331742928,1720740639128,-12711.00195531,0.00020403,2]
[331742930,1720740639138,-276.7340499,0.00020733,2]
[331742931,1720740639147,-288.02479007,0.00020784,2]
[331742932,1720740639156,-1763.19321584,0.00020996,2]
[331742933,1720740639166,-4397.41453925,0.00021012,2]
[331742934,1720740639175,-750.0,0.00021096,2]
[331742935,1720740639185,-163.972939,0.00021096,2]
[331742936,1720740639195,-225.81003448,0.00021357,2]
[331742937,1720740639206,-764.10919398,0.00021357,2]
[331742938,1720740639216,-1000.0,0.00021357,2]
[331742939,1720740639227,-161.078672,0.00021426,2]
[331742940,1720740639238,-1065.99282123,0.00021917,2]
[331742941,1720740639249,-166.666666,0.00021918,2]
[331742942,1720740639260,-880.43468387,0.00022265,2]
[331742943,1720740639270,-166.666666,0.00022431,2]
[331742944,1720740639280,-166.666666,0.00022944,2]
[331742945,1720740639290,-166.666666,0.00023456,2]
[331742946,1720740639301,-503.0,0.00023615,2]
[331742947,1720740639310,-1406.0,0.00023615,2]
[331742948,1720740639320,-166.666666,0.00023969,2]
[331742949,1720740639331,-1191.5643672,0.00024346,2]
[331742960,1720740640162,-571.62884858,0.00024346,2]
[331742961,1720740640173,-166.666666,0.00024482,2]
[331742962,1720740640183,-302.42545213,0.000249,2]
[331742963,1720740640192,-11463.1056266,0.00025,2]
[331742964,1720740640203,-154.68290005,0.00025086,2]
[331742965,1720740640213,-499.99255164,0.00025086,2]
[331742966,1720740640224,-2307.18969428,0.00025104,2]
[331742967,1720740640233,-229.23922118,0.0002511,2]
[331742968,1720740640243,-302.42545213,0.00025149,2]
[331742969,1720740640253,-921.09,0.00025174,3]
[331742970,1720740640263,-2307.18969427,0.00025178,2]
[331742971,1720740640273,-167.47,0.00025184,3]
[331742972,1720740640282,-460.54,0.00025184,3]
[331742973,1720740640292,-16261.05,0.00025184,3]
[331742974,1720740640303,-230.27,0.00025184,3]
[331742975,1720740640312,-151.0,0.00025194,7]
[331742977,1720740640322,-151.0,0.00025194,7]
[331742978,1720740640331,-25276.11897146,0.00025194,3]
[331742979,1720740640343,-82700.56396065,0.00025194,3]
[331743081,1720741732915,12615.47012078,0.00016255,2]
[331743094,1720741838121,-225.81003448,0.0002,2]
[331743095,1720741838130,-764.10919398,0.0002,2]
[331743096,1720741838140,-750.0,0.00021096,2]
[331743097,1720741838149,-170.324275,0.00021096,2]
[331743098,1720741838158,-22411.55812216,0.000226,2]
[331743114,1720741840167,-2488.44187784,0.000226,2]
[331743116,1720741840177,-1322.39491187,0.00022669,2]
[331743118,1720741840187,-166.666669,0.00022769,2]
[331743120,1720741840197,-166.666666,0.00022837,2]
[331743121,1720741840207,-394.397187,0.00023177,2]
[331743123,1720741840216,-166.666669,0.00023363,2]
[331743125,1720741840225,-1065.99282123,0.00023453,2]
[331743126,1720741840235,-166.666666,0.0002346,2]
[331743127,1720741840244,-161.078672,0.00023558,2]
[331743128,1720741840254,-503.0,0.00023928,2]
[331743130,1720741840264,-1406.0,0.00023928,2]
[331743131,1720741840273,-166.666669,0.00023956,2]
[331743132,1720741840283,-166.666666,0.00024082,2]
[331743134,1720741840292,-880.43468387,0.00024481,2]
[331743136,1720741840301,-166.666666,0.00024705,2]
[331743138,1720741840310,-19215.98069728,0.00024917,2]
[331743139,1720741840320,-154.68290005,0.00025,2]
[331743140,1720741840329,-260.49611941,0.00025,2]
[331743141,1720741840338,-6368.39201478,0.00025,2]
[331743142,1720741840350,-354.13,0.00025184,3]
[331743143,1720741840359,-177.06,0.00025184,3]
[331743144,1720741840369,-531.23,0.00025184,3]
[331743145,1720741840379,-154.68290005,0.00025194,2]
[331743146,1720741840389,-1000.0,0.00025194,2]
[331743147,1720741840399,-189.30856144,0.00025194,2]
[331743148,1720741840409,-708.26,0.00025194,3]
[331743149,1720741840419,-8489.83,0.00025194,3]
[331743150,1720741840428,-10745.2996308,0.00025194,3]
[331743151,1720741840438,-24962.80431203,0.00025204,2]
[331743156,1720741843299,-200.70468774,0.00025204,2]
[331743306,1720741962950,7851.27788682,0.00016255,2]
[331743324,1720742935533,-439.50946012,0.0002,2]
[331743330,1720743032383,-647.89820561,0.0002,2]
[331743331,1720743032393,-737.03711835,0.0002,2]
[331743332,1720743032402,-274.66681796,0.0002,2]
[331743333,1720743032412,-293.58203646,0.0002,2]
[331743334,1720743032423,-962.88201462,0.0002,2]
[331743335,1720743032437,-37.11798538,0.0002,2]
[331743336,1720743032447,-712.5,0.00021096,2]
[331743337,1720743032456,-170.324275,0.00021096,2]
[331743338,1720743032466,-880.43468387,0.0002217,2]
[331743339,1720743032475,-161.078672,0.00022392,2]
[331743340,1720743032485,-166.666666,0.00022611,2]
[331743341,1720743032495,-2548.90936371,0.00022844,2]
[331743342,1720743032507,-258.18004786,0.00022844,2]
[331743344,1720743038223,-6986.23838379,0.00022844,2]
[331743345,1720743038234,-5461.6128938,0.00022844,2]
[331743346,1720743038275,-9645.05931084,0.00022844,2]
[331743347,1720743038285,-166.666666,0.00023228,2]
[331743348,1720743038294,-1406.0,0.0002363,2]
[331743349,1720743038303,-166.666666,0.00023844,2]
[331743350,1720743038313,-503.0,0.0002393,2]
[331743351,1720743038322,-1157.09554786,0.00024361,2]
[331743352,1720743038334,-166.666666,0.00024461,2]
[331743353,1720743038343,-306.0,0.00024907,2]
[331743354,1720743038353,-243.13103111,0.00025,2]
[331743355,1720743038364,-244.43753394,0.00025,2]
[331743356,1720743038373,-953.94875273,0.00025,2]
[331743419,1720744184307,182.77484663,0.00016255,2]
[331743424,1720744228468,247.46843612,0.00016255,2]
[331743482,1720744238424,-1792.20975339,0.000189,2]
[331743483,1720744238435,-249.85840764,0.00020543,2]
[331743484,1720744238444,-750.0,0.00021096,2]
[331743485,1720744238466,-159.518862,0.00021568,2]
[331743486,1720744238477,-159.518862,0.00021643,2]
[331743487,1720744238486,-159.518862,0.00021718,2]
[331743488,1720744238496,-159.518862,0.00021793,2]
[331743489,1720744238506,-159.518862,0.00021868,2]
[331743490,1720744238515,-159.518862,0.00021942,2]
[331743491,1720744238526,-159.518862,0.00022017,2]
[331743492,1720744238536,-159.518862,0.00022092,2]
[331743493,1720744238547,-159.518862,0.00022167,2]
[331743494,1720744238557,-159.518862,0.00022242,2]
[331743495,1720744238567,-159.518862,0.00022317,2]
[331743496,1720744238576,-1642.44658067,0.00022367,2]
[331743497,1720744238586,-880.43468387,0.0002237,2]
[331743498,1720744238597,-880.43468387,0.0002237,2]
[331743499,1720744238607,-159.518862,0.00022392,2]
[331743500,1720744238617,-24900.0,0.00022443,2]
[331743501,1720744238626,-159.518862,0.00022467,2]
[331743502,1720744238636,-159.518862,0.00022542,2]
[331743503,1720744238646,-159.518862,0.00022617,2]
[331743504,1720744238656,-159.518862,0.00022692,2]
[331743505,1720744238665,-166.666666,0.00022845,2]
[331743506,1720744238675,-161.078681,0.00022966,2]
[331743507,1720744238683,-872.20663082,0.00023,5]
[331743508,1720744238693,-1744.2985856,0.00023,2]
[331743509,1720744238703,-394.397187,0.00023426,2]
[331743510,1720744238713,-166.666666,0.00023468,2]
[331743511,1720744238723,-1792.20975339,0.000239,2]
[331743512,1720744238733,-166.666666,0.0002409,2]
[331743513,1720744238743,-1406.0,0.0002413,2]
[331743514,1720744238754,-166.666666,0.00024713,2]
[331743515,1720744238767,-302.51602579,0.000249,2]
[331743516,1720744238777,-5414.44326205,0.00025,2]
[331743517,1720744238787,-1000.0,0.00025,2]
[331743518,1720744238798,-189.30856144,0.00025,2]
[331743519,1720744238808,-229.23922118,0.00025,2]
[331743520,1720744238818,-260.49611941,0.00025096,2]
[331743521,1720744238828,-1384.31381657,0.0002514,2]
[331743522,1720744238841,-302.51602579,0.00025149,2]
[331743523,1720744238853,-3040.0543575,0.0002515,3]
[331743543,1720744240756,-293.33733024,0.00018899,2]
[331743545,1720744240769,-2118.36643644,0.0002515,3]
[331743548,1720744240779,-1384.31381656,0.00025173,2]
[331743550,1720744240789,-169.0,0.000252,6]
[331743552,1720744240800,-531.23,0.000252,3]
[331743554,1720744240810,-1013.865751,0.000252,2]
[331743556,1720744240821,-4836.49100023,0.00025204,2]
[331743558,1720744240831,-1384.31381656,0.00025205,2]
[331743561,1720744240847,-354.13,0.0002521,3]
[331743563,1720744240858,-177.06,0.0002521,3]
[331743565,1720744240867,-9173.96,0.0002521,3]
[331743567,1720744240876,-708.26,0.0002522,3]
[331743569,1720744240885,-151.0,0.0002522,7]
[331743571,1720744240894,-151.0,0.0002522,7]
[331743573,1720744240903,-60254.23580962,0.0002522,3]
[331743821,1720744243626,-503.0,0.00023756,2]
[331743823,1720744243636,-4537.449459,0.0002522,3]
[331743825,1720744243648,-11622.33520542,0.0002522,3]
[331744224,1720744247709,-11167.9927274,0.0002522,3]
[331745998,1720745433331,-712.5,0.00021096,2]
[331745999,1720745433344,-161.078672,0.00021136,2]
[331746000,1720745433355,-243.05084835,0.00021405,2]
[331746009,1720745440680,-24656.94915165,0.00021405,2]
[331746010,1720745440691,-1065.99282123,0.00021917,2]
[331746011,1720745440700,-166.666666,0.00021918,2]
[331746012,1720745440710,-166.666666,0.00022431,2]
[331746013,1720745440719,-1437.14075806,0.00022842,2]
[331746014,1720745440728,-166.666666,0.00022944,2]
[331746015,1720745440738,-597.40325113,0.0002312,2]
[331746016,1720745440747,-30000.0,0.00023453,2]
[331746017,1720745440756,-166.666666,0.00023456,2]
[331746018,1720745440765,-166.666666,0.00023969,2]
[331746019,1720745440774,-166.666666,0.00024482,2]
[331746021,1720745440784,-205.811,0.00024651,2]
[331746026,1720745440893,-1406.0,0.00024651,2]
[331746027,1720745440902,-6368.39201478,0.00025,2]
[331746028,1720745440911,-531.23,0.00025011,3]
[331746029,1720745440921,-13760.94,0.00025011,3]
[331746030,1720745440930,-177.06,0.00025021,3]
[331746031,1720745440939,-1200.30763756,0.00025021,3]
[331746060,1720745446872,-15312.81236244,0.00025021,3]
[331746061,1720745446882,-354.13,0.00025031,3]
[331746062,1720745446893,-19815.75,0.00025031,3]
[331746063,1720745446903,-2118.36643644,0.00025041,3]
[331746064,1720745446914,-483.241788,0.00025058,7]
[331746065,1720745446925,-483.241788,0.00025058,7]
[331746066,1720745446936,-151.0,0.00025058,7]
[331746067,1720745446946,-151.0,0.00025058,7]
[331746068,1720745446956,-483.241788,0.00025068,7]
[331746069,1720745446966,-483.241788,0.00025068,7]
[331746070,1720745446976,-151.0,0.00025068,7]
[331746071,1720745446986,-151.0,0.00025068,7]
[331746072,1720745446997,-483.241788,0.00025078,7]
[331746073,1720745447006,-483.241788,0.00025078,7]
[331746074,1720745447016,-151.0,0.00025078,7]
[331746075,1720745447026,-151.0,0.00025078,7]
[331746076,1720745447035,-302.57643837,0.00025094,2]
[331746077,1720745447043,-151.0,0.0002514,7]
[331746078,1720745447053,-151.0,0.00025141,7]
[331746079,1720745447064,-151.0,0.0002515,7]
[331746080,1720745447074,-4781.155142,0.000252,2]
[331746081,1720745447084,-1013.865751,0.000252,2]
[331746082,1720745447094,-189.30856144,0.0002522,2]
[331746083,1720745447104,-1000.0,0.0002522,2]
[331746084,1720745447114,-154.76012181,0.0002522,2]
[331746085,1720745447128,-1906.85890985,0.0002522,2]
[331746086,1720745447138,-5654.14566085,0.0002522,2]
[331746087,1720745447148,-208.84985583,0.0002522,2]
[331746088,1720745447157,-278.3867184,0.0002525,7]
[331746089,1720745447169,-1107.45105328,0.00025259,2]
[331746090,1720745447179,-708.26,0.0002528,3]
[331746091,1720745447189,-1107.45105324,0.00025294,2]
[331746092,1720745447200,-436.10331541,0.000253,5]
[331746093,1720745447211,-4042.01816,0.000253,2]
[331746094,1720745447221,-483.241788,0.000253,7]
[331746095,1720745447231,-483.241788,0.000253,7]
[331746096,1720745447240,-151.0,0.000253,7]
[331746097,1720745447250,-151.0,0.000253,7]
[331746098,1720745447261,-1107.45105324,0.00025329,2]
[331746099,1720745447271,-11467.45,0.0002534,3]
[331746100,1720745447280,-302.57643837,0.00025345,2]
[331746101,1720745447290,-151.0,0.00025349,7]
[331746102,1720745447299,-218.93705329,0.00025349,2]
[331746103,1720745447309,-500.0,0.00025349,2]
[331746104,1720745447323,-500.0,0.00025349,2]
[331746105,1720745447334,-271.4913998,0.00025349,2]
[331746106,1720745447343,-500.0,0.00025349,2]
[331746107,1720745447353,-297.7787753,0.00025349,2]
[331746108,1720745447363,-500.0,0.00025349,2]
[331746109,1720745447373,-500.0,0.00025349,2]
[331746110,1720745447383,-500.0,0.00025349,2]
[331746111,1720745447392,-500.0,0.00025349,2]
[331746112,1720745447402,-500.0,0.00025349,2]
[331746113,1720745447411,-500.0,0.00025349,2]
[331746114,1720745447421,-151.0,0.0002535,7]
[331746115,1720745447432,-242.46318,0.0002535,7]
[331746116,1720745447442,-155843.448924,0.0002535,3]
[331746117,1720745447452,-483.241788,0.0002535,7]
[331746118,1720745447461,-483.241788,0.0002535,7]
[331746119,1720745447472,-151.0,0.0002535,7]
[331746120,1720745447482,-151.0,0.0002535,7]
[331746121,1720745447492,-200.609348,0.0002536,7]
[331746122,1720745447501,-151.0,0.0002536,7]
[331746123,1720745447511,-151.0,0.0002536,7]
[331746124,1720745447520,-151.0,0.0002536,7]
[331746125,1720745447529,-151.0,0.0002536,7]
[331746126,1720745447539,-151.0,0.0002536,7]
[331746127,1720745447548,-8344.73481514,0.0002536,5]
[331746128,1720745447557,-483.241788,0.0002536,7]
[331746129,1720745447570,-483.241788,0.0002536,7]
[331746130,1720745447579,-151.0,0.0002536,7]
[331746131,1720745447589,-151.0,0.0002536,7]
[331746132,1720745447598,-311686.897849,0.0002536,3]
[331746133,1720745447607,-1107.45105324,0.00025363,2]
[331746134,1720745447616,-23735.05044026,0.0002537,2]
[331746135,1720745540264,308.2,0.00018,2]
[331746143,1720746051868,5473.95777489,0.00016255,2]
[331746146,1720746115359,525.65174329,0.00016255,2]
[331746147,1720746176965,154.86836189,0.00016255,2]
[331746148,1720746218885,5473.95777489,0.00016255,2]
[331746149,1720746311347,280.98778095,0.00016255,2]
[331746150,1720746381390,3507.08445022,0.00016255,2]
[331746304,1720746632815,391.80627157,0.00016255,2]
[331746830,1720746637851,-398.26883408,0.000189,2]
[331746832,1720746637861,-968.62912024,0.00020831,2]
[331746964,1720746643254,-3112.68724399,0.00020831,2]
[331746977,1720746646110,-282.2516065,0.00020831,2]
[331746993,1720747488840,379.32113345,0.00016255,2]
[331746994,1720747531955,155.12163422,0.00016255,2]
[331746997,1720747564498,276.64310743,0.00017531,2]
[331746998,1720747566774,772.81294061,0.00016255,2]
[331746999,1720747572930,9508.99821661,0.00016255,2]
[331747048,1720747833282,-265.51255606,0.000189,2]
[331747050,1720747833292,-161.41818107,0.00019703,2]
[331747052,1720747833302,-2082.42657602,0.000198,15]
[331747054,1720747833312,-1257.49816332,0.000199,2]
[331747056,1720747833322,-218.05165771,0.0002,5]
[331747058,1720747833332,-156.89838257,0.0002,2]
[331747059,1720747833341,-7192.19448325,0.0002,2]
[331747060,1720747833353,-457.52505873,0.0002,2]
[331747093,1720747838191,-49139.89599756,0.0002,2]
[331747094,1720747838201,-428.44271624,0.0002,2]
[331747095,1720747838211,-6867.50856423,0.0002,2]
[331747096,1720747838220,-150.2,0.0002,2]
[331747097,1720747838229,-293.58203646,0.0002,2]
[331747098,1720747838238,-154.77022901,0.0002,2]
[331747099,1720747838248,-686.954564,0.00021096,2]
[331747100,1720747838258,-161.078672,0.00021832,2]
[331747101,1720747838268,-166.666666,0.00022013,2]
[331747102,1720747838278,-880.43468387,0.00022236,2]
[331747103,1720747838287,-166.666666,0.00022613,2]
[331747104,1720747838296,-166.666666,0.00023213,2]
[331747106,1720747838306,-24900.0,0.0002324,2]
[331747108,1720747838316,-1257.49816328,0.00023407,2]
[331747110,1720747838325,-166.666666,0.00023813,2]
[331747112,1720747838334,-265.51255606,0.000239,2]
[331747114,1720747838343,-1406.0,0.0002426,2]
[331747116,1720747838352,-166.666666,0.00024413,2]
[331747119,1720747838361,-302.51602579,0.000249,2]
[331747121,1720747838371,-568.82,0.0002495,3]
[331747123,1720747838380,-185.8,0.0002496,3]
[331747125,1720747838389,-11493.87,0.0002496,3]
[331747127,1720747838398,-9578.23,0.0002496,3]
[331747129,1720747838408,-495.48,0.0002497,3]